Workbook

Sheet Cover Sheet
F4: Havering Childhood Immunisations Dashboard
F6: Report designed following the parameters of the Public Health England COVER programme
F8: Contains data on immunisation uptake for children becoming 12m, 24m and 5yrs in the quarter
F12: Patients becoming 12m
F14: DTaP/IPV/Hib/HepB
F15: Men B
F16: PCV
F17: Rotavirus
F18: BCG
F20: Patients becoming 24m
F22: DTaP/IPV/Hib/HepB
F23: MMR
F24: HiB/Men C
F25: PCV (Booster)
F26: Men B (Booster)
F27: Patients becoming 5y
F29: DTaP/IPV
F30: MMR (Primary)
F31: DTaP/IPV/Hib (Booster)
F32: MMR (Booster)
F33: HiB/Men C
F35: N.B. Rotavirus not included in performance target
F37: Version tracking
F38: Version 2.8 | G38: - PCV Schedule updated | M38: December 2020
F40: Version 2.7 | G40: - Removed the 5in1 from Patients becoming 12m, now only 6in1 | M40: April 2019
F42: Version 2.6 | G42: - Men B (Booster) included and 5in1 to have to become 6in1 for patients born after 01/08/2017 | M42: April 2018
F44: Version 2.5 | G44: - Men C removed Men B included | M44: May 2017
F46: Version 2.4 | G46: - DTaP/IPV (Booster) (NO LOWER AGE LIMIT) Removed | M46: May 2016
F48: Version 2.3 | G48: - Lower age limit for MMR, HiB/Men C and PCV adjusted to 1 year in line with NHSE guidance | M48: May 2015
F50: Version 2.2 | G50: - Cluster configuration and practice names updated | M50: April 2015
F52: Version 2.1 | G52: - DTaP/IPV/Hib (No lower age limit) added to 5yr cohort | M52: October 2014
F54: Version 2.0 | G54: - Specification and presentation used from CEG report for Tower Hamlets | M54: September 2014

Sheet Cluster Summary
M2: end
G3: Havering Childhood Immunisations Dashboard: Metric Details
G5: Cluster Summary
U6: 0.96 | V6: 95% and over | Y6: 100% of quarterly performance payment
G7: Coverage | J7: Percentage of target population immunised | U7: 0.94 | V7: 0.94 | Y7: 80% of quarterly performance payment
G8: Activty | J8: Number of patients immunised | U8: 0.92 | V8: 92% or 93% | Y8: 40% of quarterly performance payment
G9: Required | J9: Number of patients requiring immunisation for network to attain 95% coverage | U9: 0.1 | V9: Less than 92%
M10: PCN1 | Q10: PCN2 | U10: PCN3 | Y10: PCN4
I11: Havering Total | L11: ='Control Panel'!A7 -> Havering Crest | P11: ='Control Panel'!B62 -> Havering Marshall | T11: ='Control Panel'!B63 -> Havering North | X11: ='Control Panel'!B64 -> Havering South
B14: (01) 12 MONTH COHORT | C14: ="Patients becoming 12m" -> Patients becoming 12m | J14: =M14+Q14+U14+Y14 -> 3148 | M14: =SUMIFS(OFFSET(REL_D,,MATCH(B14,IND,0)-1),REL_D,$M$2,total,$M$10) -> 502 | Q14: =SUMIFS(OFFSET(REL_D,,MATCH(B14,IND,0)-1),REL_D,$M$2,total,$Q$10) -> 514 | U14: =SUMIFS(OFFSET(REL_D,,MATCH(B14,IND,0)-1),REL_D,$M$2,total,$U$10) -> 1067 | Y14: =SUMIFS(OFFSET(REL_D,,MATCH(B14,IND,0)-1),REL_D,$M$2,total,$Y$10) -> 1065
I15: Coverage | J15: Activty | L15: Coverage | M15: Activty | N15: Required | P15: Coverage | Q15: Activty | R15: Required | T15: Coverage | U15: Activty | V15: Required | X15: Coverage | Y15: Activty | Z15: Required
B16: (01.01) DTaP/IPV/Hib Combined | C16: DTaP/IPV/Hib/HepB | I16: =IFERROR(ROUND(J16/J$14,3),"") -> 0.902 | J16: =M16+Q16+U16+Y16+AC16+AG16+AK16+AO16 -> 2840 | L16: =IFERROR(ROUND(M16/M$14,3),"") -> 0.871 | M16: =SUMIFS(OFFSET(REL_D,,MATCH(B16,IND,0)-1),REL_D,$M$2,total,$M$10) -> 437 | N16: =IF(AND(M$14*0.95-M16<1,(M$14*0.95-M16>0)),1,IF(M$14*0.95-M16<=0,"",M$14*0.95-M16)) -> 39.9 | P16: =IFERROR(ROUND(Q16/Q$14,3),"") -> 0.924 | Q16: =SUMIFS(OFFSET(REL_D,,MATCH(B16,IND,0)-1),REL_D,$M$2,total,$Q$10) -> 475 | R16: =IF(AND(Q$14*0.95-Q16<1,(Q$14*0.95-Q16>0)),1,IF(Q$14*0.95-Q16<=0,"",Q$14*0.95-Q16)) -> 13.3 | T16: =IFERROR(ROUND(U16/U$14,3),"") -> 0.872 | U16: =SUMIFS(OFFSET(REL_D,,MATCH(B16,IND,0)-1),REL_D,$M$2,total,$U$10) -> 930 | V16: =IF(AND(U$14*0.95-U16<1,(U$14*0.95-U16>0)),1,IF(U$14*0.95-U16<=0,"",U$14*0.95-U16)) -> 83.65 | X16: =IFERROR(ROUND(Y16/Y$14,3),"") -> 0.937 | Y16: =SUMIFS(OFFSET(REL_D,,MATCH(B16,IND,0)-1),REL_D,$M$2,total,$Y$10) -> 998 | Z16: =IF(AND(Y$14*0.95-Y16<1,(Y$14*0.95-Y16>0)),1,IF(Y$14*0.95-Y16<=0,"",Y$14*0.95-Y16)) -> 13.75
B17: (01.02) Men B (1st and 2nd) | C17: Men B | I17: =IFERROR(ROUND(J17/J$14,3),"") -> 0.9 | J17: =M17+Q17+U17+Y17+AC17+AG17+AK17+AO17 -> 2833 | L17: 0.861 | M17: =SUMIFS(OFFSET(REL_D,,MATCH(B17,IND,0)-1),REL_D,$M$2,total,$M$10) -> 432 | N17: =IF(AND(M$14*0.95-M17<1,(M$14*0.95-M17>0)),1,IF(M$14*0.95-M17<=0,"",M$14*0.95-M17)) -> 44.9 | P17: 0.911 | Q17: =SUMIFS(OFFSET(REL_D,,MATCH(B17,IND,0)-1),REL_D,$M$2,total,$Q$10) -> 468 | R17: =IF(AND(Q$14*0.95-Q17<1,(Q$14*0.95-Q17>0)),1,IF(Q$14*0.95-Q17<=0,"",Q$14*0.95-Q17)) -> 20.3 | T17: 0.873 | U17: =SUMIFS(OFFSET(REL_D,,MATCH(B17,IND,0)-1),REL_D,$M$2,total,$U$10) -> 932 | V17: =IF(AND(U$14*0.95-U17<1,(U$14*0.95-U17>0)),1,IF(U$14*0.95-U17<=0,"",U$14*0.95-U17)) -> 81.65 | X17: 0.94 | Y17: =SUMIFS(OFFSET(REL_D,,MATCH(B17,IND,0)-1),REL_D,$M$2,total,$Y$10) -> 1001 | Z17: =IF(AND(Y$14*0.95-Y17<1,(Y$14*0.95-Y17>0)),1,IF(Y$14*0.95-Y17<=0,"",Y$14*0.95-Y17)) -> 10.75
B18: (01.03) PCV | C18: PCV | I18: 0.942 | J18: 2966 | L18: 0.938 | M18: =SUMIFS(OFFSET(REL_D,,MATCH(B18,IND,0)-1),REL_D,$M$2,total,$M$10) -> 471 | N18: 5.9 | P18: 0.938 | Q18: =SUMIFS(OFFSET(REL_D,,MATCH(B18,IND,0)-1),REL_D,$M$2,total,$Q$10) -> 482 | R18: 6.3 | T18: 0.924 | U18: =SUMIFS(OFFSET(REL_D,,MATCH(B18,IND,0)-1),REL_D,$M$2,total,$U$10) -> 986 | V18: 27.65 | X18: 0.964 | Y18: =SUMIFS(OFFSET(REL_D,,MATCH(B18,IND,0)-1),REL_D,$M$2,total,$Y$10) -> 1027
B19: (01.04) Rotavirus | C19: Rotavirus | I19: 0.906 | J19: 2851 | L19: 0.873 | M19: =SUMIFS(OFFSET(REL_D,,MATCH(B19,IND,0)-1),REL_D,$M$2,total,$M$10) -> 438 | N19: 38.9 | P19: 0.911 | Q19: =SUMIFS(OFFSET(REL_D,,MATCH(B19,IND,0)-1),REL_D,$M$2,total,$Q$10) -> 468 | R19: 20.3 | T19: 0.881 | U19: =SUMIFS(OFFSET(REL_D,,MATCH(B19,IND,0)-1),REL_D,$M$2,total,$U$10) -> 940 | V19: 73.65 | X19: 0.944 | Y19: =SUMIFS(OFFSET(REL_D,,MATCH(B19,IND,0)-1),REL_D,$M$2,total,$Y$10) -> 1005 | Z19: 6.75
B20: (01.05) BCG | C20: BCG | I20: 0 | J20: 0 | L20: 0 | M20: =SUMIFS(OFFSET(REL_D,,MATCH(B20,IND,0)-1),REL_D,$M$2,IF(LEFT($M$10,1)="C",total,OrgID),$M$10) -> 0 | N20: 476.9 | P20: 0 | Q20: =SUMIFS(OFFSET(REL_D,,MATCH(B20,IND,0)-1),REL_D,$M$2,IF(LEFT($Q$10,1)="C",total,OrgID),$Q$10) -> 0 | R20: 488.3 | T20: 0 | U20: =SUMIFS(OFFSET(REL_D,,MATCH(B20,IND,0)-1),REL_D,$M$2,IF(LEFT($U$10,1)="n",total,OrgID),$U$10) -> 0 | V20: 1013.65 | X20: 0 | Y20: =SUMIFS(OFFSET(REL_D,,MATCH(B20,IND,0)-1),REL_D,$M$2,total,$X$11) -> 0 | Z20: 1011.75
B22: (02) 24 MONTH COHORT | C22: ="Patients becoming 24m" -> Patients becoming 24m | J22: =M22+Q22+U22+Y22+AC22+AG22+AK22+AO22 -> 3304 | M22: =SUMIFS(OFFSET(REL_D,,MATCH(B22,IND,0)-1),REL_D,$M$2,total,$M$10) -> 518 | Q22: =SUMIFS(OFFSET(REL_D,,MATCH(B22,IND,0)-1),REL_D,$M$2,total,$Q$10) -> 554 | U22: =SUMIFS(OFFSET(REL_D,,MATCH(B22,IND,0)-1),REL_D,$M$2,total,$U$10) -> 1110 | Y22: =SUMIFS(OFFSET(REL_D,,MATCH(B22,IND,0)-1),REL_D,$M$2,total,$Y$10) -> 1122
I23: Coverage | J23: Activty | L23: Coverage | M23: Activty | N23: Required | P23: Coverage | Q23: Activty | R23: Required | T23: Coverage | U23: Activty | V23: Required | X23: Coverage | Y23: Activty | Z23: Required
B24: (02.01) DTaP/IPV/Hib Combined | C24: DTaP/IPV/Hib/HepB | I24: =IFERROR(ROUND(J24/J$22,3),"") -> 0.903 | J24: =M24+Q24+U24+Y24+AC24+AG24+AK24+AO24 -> 2983 | L24: =IFERROR(ROUND(M24/M$22,3),"") -> 0.817 | M24: =SUMIFS(OFFSET(REL_D,,MATCH(B24,IND,0)-1),REL_D,$M$2,total,$M$10) -> 423 | N24: =IF(AND(M$22*0.95-M24<1,(M$22*0.95-M24>0)),1,IF(M$22*0.95-M24<=0,"",M$22*0.95-M24)) -> 69.1 | P24: =IFERROR(ROUND(Q24/Q$22,3),"") -> 0.928 | Q24: =SUMIFS(OFFSET(REL_D,,MATCH(B24,IND,0)-1),REL_D,$M$2,total,$Q$10) -> 514 | R24: =IF(AND(Q$22*0.95-Q24<1,(Q$22*0.95-Q24>0)),1,IF(Q$22*0.95-Q24<=0,"",Q$22*0.95-Q24)) -> 12.3 | T24: =IFERROR(ROUND(U24/U$22,3),"") -> 0.907 | U24: =SUMIFS(OFFSET(REL_D,,MATCH(B24,IND,0)-1),REL_D,$M$2,total,$U$10) -> 1007 | V24: =IF(AND(U$22*0.95-U24<1,(U$22*0.95-U24>0)),1,IF(U$22*0.95-U24<=0,"",U$22*0.95-U24)) -> 47.5 | X24: =IFERROR(ROUND(Y24/Y$22,3),"") -> 0.926 | Y24: =SUMIFS(OFFSET(REL_D,,MATCH(B24,IND,0)-1),REL_D,$M$2,total,$Y$10) -> 1039 | Z24: =IF(AND(Y$22*0.95-Y24<1,(Y$22*0.95-Y24>0)),1,IF(Y$22*0.95-Y24<=0,"",Y$22*0.95-Y24)) -> 26.9
B25: (02.02) MMR | C25: MMR | I25: =IFERROR(ROUND(J25/J$22,3),"") -> 0.864 | J25: 2854 | L25: =IFERROR(ROUND(M25/M$22,3),"") -> 0.82 | M25: =SUMIFS(OFFSET(REL_D,,MATCH(B25,IND,0)-1),REL_D,$M$2,total,$M$10) -> 425 | N25: =IF(AND(M$22*0.95-M25<1,(M$22*0.95-M25>0)),1,IF(M$22*0.95-M25<=0,"",M$22*0.95-M25)) -> 67.1 | P25: =IFERROR(ROUND(Q25/Q$22,3),"") -> 0.901 | Q25: =SUMIFS(OFFSET(REL_D,,MATCH(B25,IND,0)-1),REL_D,$M$2,total,$Q$10) -> 499 | R25: =IF(AND(Q$22*0.95-Q25<1,(Q$22*0.95-Q25>0)),1,IF(Q$22*0.95-Q25<=0,"",Q$22*0.95-Q25)) -> 27.3 | T25: =IFERROR(ROUND(U25/U$22,3),"") -> 0.829 | U25: =SUMIFS(OFFSET(REL_D,,MATCH(B25,IND,0)-1),REL_D,$M$2,total,$U$10) -> 920 | V25: =IF(AND(U$22*0.95-U25<1,(U$22*0.95-U25>0)),1,IF(U$22*0.95-U25<=0,"",U$22*0.95-U25)) -> 134.5 | X25: =IFERROR(ROUND(Y25/Y$22,3),"") -> 0.9 | Y25: =SUMIFS(OFFSET(REL_D,,MATCH(B25,IND,0)-1),REL_D,$M$2,total,$Y$10) -> 1010 | Z25: =IF(AND(Y$22*0.95-Y25<1,(Y$22*0.95-Y25>0)),1,IF(Y$22*0.95-Y25<=0,"",Y$22*0.95-Y25)) -> 55.9
B26: (02.03) HiB/Men C | C26: HiB/Men C | I26: 0.865 | J26: 2859 | L26: 0.811 | M26: =SUMIFS(OFFSET(REL_D,,MATCH(B26,IND,0)-1),REL_D,$M$2,total,$M$10) -> 420 | N26: 72.1 | P26: 0.894 | Q26: =SUMIFS(OFFSET(REL_D,,MATCH(B26,IND,0)-1),REL_D,$M$2,total,$Q$10) -> 495 | R26: 31.3 | T26: 0.837 | U26: =SUMIFS(OFFSET(REL_D,,MATCH(B26,IND,0)-1),REL_D,$M$2,total,$U$10) -> 929 | V26: 125.5 | X26: 0.905 | Y26: =SUMIFS(OFFSET(REL_D,,MATCH(B26,IND,0)-1),REL_D,$M$2,total,$Y$10) -> 1015 | Z26: 50.9
B27: (02.04) PCV (Booster) | C27: PCV (Booster) | I27: 0.866 | J27: 2860 | L27: 0.834 | M27: =SUMIFS(OFFSET(REL_D,,MATCH(B27,IND,0)-1),REL_D,$M$2,total,$M$10) -> 432 | N27: 60.1 | P27: 0.895 | Q27: =SUMIFS(OFFSET(REL_D,,MATCH(B27,IND,0)-1),REL_D,$M$2,total,$Q$10) -> 496 | R27: 30.3 | T27: 0.823 | U27: =SUMIFS(OFFSET(REL_D,,MATCH(B27,IND,0)-1),REL_D,$M$2,total,$U$10) -> 914 | V27: 140.5 | X27: 0.907 | Y27: =SUMIFS(OFFSET(REL_D,,MATCH(B27,IND,0)-1),REL_D,$M$2,total,$Y$10) -> 1018 | Z27: 47.9
B28: (02.05) Men B (Booster) | C28: Men B (Booster) | I28: 0.857 | J28: =M28+Q28+U28+Y28+AC28+AG28+AK28+AO28 -> 2830 | L28: 0.813 | M28: =SUMIFS(OFFSET(REL_D,,MATCH(B28,IND,0)-1),REL_D,$M$2,total,$M$10) -> 421 | N28: =IF(AND(M$22*0.95-M28<1,(M$22*0.95-M28>0)),1,IF(M$22*0.95-M28<=0,"",M$22*0.95-M28)) -> 71.1 | P28: 0.888 | Q28: =SUMIFS(OFFSET(REL_D,,MATCH(B28,IND,0)-1),REL_D,$M$2,total,$Q$10) -> 492 | R28: =IF(AND(Q$22*0.95-Q28<1,(Q$22*0.95-Q28>0)),1,IF(Q$22*0.95-Q28<=0,"",Q$22*0.95-Q28)) -> 34.3 | T28: 0.825 | U28: =SUMIFS(OFFSET(REL_D,,MATCH(B28,IND,0)-1),REL_D,$M$2,total,$U$10) -> 916 | V28: =IF(AND(U$22*0.95-U28<1,(U$22*0.95-U28>0)),1,IF(U$22*0.95-U28<=0,"",U$22*0.95-U28)) -> 138.5 | X28: 0.892 | Y28: =SUMIFS(OFFSET(REL_D,,MATCH(B28,IND,0)-1),REL_D,$M$2,total,$Y$10) -> 1001 | Z28: 64.9
B30: (03) 5 YEAR COHORT | C30: ="Patients becoming 5y" -> Patients becoming 5y | J30: =M30+Q30+U30+Y30+AC30+AG30+AK30+AO30 -> 3642 | M30: =SUMIFS(OFFSET(REL_D,,MATCH(B30,IND,0)-1),REL_D,$M$2,total,$M$10) -> 595 | Q30: =SUMIFS(OFFSET(REL_D,,MATCH(B30,IND,0)-1),REL_D,$M$2,total,$Q$10) -> 605 | U30: =SUMIFS(OFFSET(REL_D,,MATCH(B30,IND,0)-1),REL_D,$M$2,total,$U$10) -> 1194 | Y30: =SUMIFS(OFFSET(REL_D,,MATCH(B30,IND,0)-1),REL_D,$M$2,total,$Y$10) -> 1248
I31: Coverage | J31: Activty | L31: Coverage | M31: Activty | N31: Required | P31: Coverage | Q31: Activty | R31: Required | T31: Coverage | U31: Activty | V31: Required | X31: Coverage | Y31: Activty | Z31: Required
B32: (03.01) DTaP/IPV/Hib Combined | C32: DTaP/IPV (Booster) | I32: =IFERROR(ROUND(J32/J$30,3),"") -> 0.673 | J32: =M32+Q32+U32+Y32+AC32+AG32+AK32+AO32 -> 2452 | L32: =IFERROR(ROUND(M32/M$30,3),"") -> 0.566 | M32: =SUMIFS(OFFSET(REL_D,,MATCH(B32,IND,0)-1),REL_D,$M$2,total,$M$10) -> 337 | N32: =IF(AND(M$30*0.95-M32<1,(M$30*0.95-M32>0)),1,IF(M$30*0.95-M32<=0,"",M$30*0.95-M32)) -> 228.25 | P32: =IFERROR(ROUND(Q32/Q$30,3),"") -> 0.726 | Q32: =SUMIFS(OFFSET(REL_D,,MATCH(B32,IND,0)-1),REL_D,$M$2,total,$Q$10) -> 439 | R32: =IF(AND(Q$30*0.95-Q32<1,(Q$30*0.95-Q32>0)),1,IF(Q$30*0.95-Q32<=0,"",Q$30*0.95-Q32)) -> 135.75 | T32: =IFERROR(ROUND(U32/U$30,3),"") -> 0.734 | U32: =SUMIFS(OFFSET(REL_D,,MATCH(B32,IND,0)-1),REL_D,$M$2,total,$U$10) -> 876 | V32: =IF(AND(U$30*0.95-U32<1,(U$30*0.95-U32>0)),1,IF(U$30*0.95-U32<=0,"",U$30*0.95-U32)) -> 258.3 | X32: =IFERROR(ROUND(Y32/Y$30,3),"") -> 0.641 | Y32: =SUMIFS(OFFSET(REL_D,,MATCH(B32,IND,0)-1),REL_D,$M$2,total,$Y$10) -> 800 | Z32: =IF(AND(Y$30*0.95-Y32<1,(Y$30*0.95-Y32>0)),1,IF(Y$30*0.95-Y32<=0,"",Y$30*0.95-Y32)) -> 385.6
B33: (03.02) MMR (Primary) | C33: MMR (Primary) | I33: =IFERROR(ROUND(J33/J$30,3),"") -> 0.884 | J33: 3218 | L33: =IFERROR(ROUND(M33/M$30,3),"") -> 0.765 | M33: =SUMIFS(OFFSET(REL_D,,MATCH(B33,IND,0)-1),REL_D,$M$2,total,$M$10) -> 455 | N33: =IF(AND(M$30*0.95-M33<1,(M$30*0.95-M33>0)),1,IF(M$30*0.95-M33<=0,"",M$30*0.95-M33)) -> 110.25 | P33: =IFERROR(ROUND(Q33/Q$30,3),"") -> 0.924 | Q33: =SUMIFS(OFFSET(REL_D,,MATCH(B33,IND,0)-1),REL_D,$M$2,total,$Q$10) -> 559 | R33: =IF(AND(Q$30*0.95-Q33<1,(Q$30*0.95-Q33>0)),1,IF(Q$30*0.95-Q33<=0,"",Q$30*0.95-Q33)) -> 15.75 | T33: =IFERROR(ROUND(U33/U$30,3),"") -> 0.875 | U33: =SUMIFS(OFFSET(REL_D,,MATCH(B33,IND,0)-1),REL_D,$M$2,total,$U$10) -> 1045 | V33: =IF(AND(U$30*0.95-U33<1,(U$30*0.95-U33>0)),1,IF(U$30*0.95-U33<=0,"",U$30*0.95-U33)) -> 89.3 | X33: =IFERROR(ROUND(Y33/Y$30,3),"") -> 0.929 | Y33: =SUMIFS(OFFSET(REL_D,,MATCH(B33,IND,0)-1),REL_D,$M$2,total,$Y$10) -> 1159 | Z33: =IF(AND(Y$30*0.95-Y33<1,(Y$30*0.95-Y33>0)),1,IF(Y$30*0.95-Y33<=0,"",Y$30*0.95-Y33)) -> 26.6
B34: (03.03) DTaP/IPV (Booster) | C34: DTaP/IPV/Hib | I34: 0.827 | J34: 3012 | L34: 0.736 | M34: =SUMIFS(OFFSET(REL_D,,MATCH(B34,IND,0)-1),REL_D,$M$2,total,$M$10) -> 438 | N34: 127.25 | P34: 0.863 | Q34: =SUMIFS(OFFSET(REL_D,,MATCH(B34,IND,0)-1),REL_D,$M$2,total,$Q$10) -> 522 | R34: 52.75 | T34: 0.81 | U34: =SUMIFS(OFFSET(REL_D,,MATCH(B34,IND,0)-1),REL_D,$M$2,total,$U$10) -> 967 | V34: 167.3 | X34: 0.869 | Y34: =SUMIFS(OFFSET(REL_D,,MATCH(B34,IND,0)-1),REL_D,$M$2,total,$Y$10) -> 1085 | Z34: 100.6
B35: (03.05) MMR (Booster) | C35: MMR (Booster) | I35: 0.843 | J35: 3071 | L35: 0.77 | M35: =SUMIFS(OFFSET(REL_D,,MATCH(B35,IND,0)-1),REL_D,$M$2,total,$M$10) -> 458 | N35: 107.25 | P35: 0.871 | Q35: =SUMIFS(OFFSET(REL_D,,MATCH(B35,IND,0)-1),REL_D,$M$2,total,$Q$10) -> 527 | R35: 47.75 | T35: 0.817 | U35: =SUMIFS(OFFSET(REL_D,,MATCH(B35,IND,0)-1),REL_D,$M$2,total,$U$10) -> 975 | V35: 159.3 | X35: 0.89 | Y35: =SUMIFS(OFFSET(REL_D,,MATCH(B35,IND,0)-1),REL_D,$M$2,total,$Y$10) -> 1111 | Z35: 74.6
B36: (03.04) HiB/Men C | C36: HiB/Men C | I36: 0.787 | J36: 2865 | L36: 0.659 | M36: =SUMIFS(OFFSET(REL_D,,MATCH(B36,IND,0)-1),REL_D,$M$2,total,$M$10) -> 392 | N36: 173.25 | P36: 0.868 | Q36: =SUMIFS(OFFSET(REL_D,,MATCH(B36,IND,0)-1),REL_D,$M$2,total,$Q$10) -> 525 | R36: 49.75 | T36: 0.795 | U36: =SUMIFS(OFFSET(REL_D,,MATCH(B36,IND,0)-1),REL_D,$M$2,total,$U$10) -> 949 | V36: 185.3 | X36: 0.8 | Y36: =SUMIFS(OFFSET(REL_D,,MATCH(B36,IND,0)-1),REL_D,$M$2,total,$Y$10) -> 999 | Z36: 186.6

Sheet Patients becoming 12m
D2: Havering Childhood Immunisations Dashboard: Metric Details
D3: Patients becoming 12m | F3: =E13 -> 3148
C6: end | D6: All Patients | E6: (01) 12 MONTH COHORT | F6: (01.01) DTaP/IPV/Hib Combined | G6: DTaP/IPV/Hib(%) | H6: Patients required to achieve NHSE Target (90%) | I6: (01.02) Men B (1st and 2nd) | J6: Men B(%) | K6: Patients required to achieve NHSE Target (90%) | L6: (01.03) PCV | M6: PCV(%) | N6: Patients required to achieve NHSE Target (90%) | O6: (01.04) Rotavirus | P6: Rotavirus(%) | Q6: =INDEX('Control Panel'!$E$2:$E$23,COLUMN(#REF!)) ->  | R6: =INDEX('Control Panel'!$E$2:$E$23,COLUMN(O1)) -> (01.04) Rotavirus | S6: =INDEX('Control Panel'!$E$2:$E$23,COLUMN(P1)) -> Rotavirus(%) | T6: =INDEX('Control Panel'!$E$2:$E$23,COLUMN(Q1)) -> 0 | U6: =INDEX('Control Panel'!$E$2:$E$23,COLUMN(R1)) -> 0 | V6: =INDEX('Control Panel'!$E$2:$E$23,COLUMN(S1)) -> 0
B7: Home | D7: Listsize | E7: Patients becoming 12m | F7: DTaP/IPV/Hib/HepB | G7: DTaP/IPV/Hib/HepB(%) | H7: Patients required to achieve CCG Target (95%) | I7: Men C / Men B | J7: Men C / Men B(%) | K7: Patients required to achieve CCG Target (95%) | L7: PCV | M7: PCV(%) | N7: Patients required to achieve CCG Target (95%) | O7: Rotavirus | P7: Rotavirus(%) | Q7: =VLOOKUP(Q6,'Control Panel'!$E$2:$F$23,2,FALSE) ->  | R7: =VLOOKUP(R6,'Control Panel'!$E$2:$F$23,2,FALSE) -> Rotavirus | S7: =VLOOKUP(S6,'Control Panel'!$E$2:$F$23,2,FALSE) -> Rotavirus(%) | T7: =VLOOKUP(T6,'Control Panel'!$E$2:$F$23,2,FALSE) ->  | U7: =VLOOKUP(U6,'Control Panel'!$E$2:$F$23,2,FALSE) ->  | V7: =VLOOKUP(V6,'Control Panel'!$E$2:$F$23,2,FALSE) -> 
A8: Cluster
A9: ='Control Panel'!A61 -> HV-1 | B9: Havering Crest | D9: =SUM(IF($A9=$A$17:$A$57,D$17:D$57)) -> 42794 | E9: =SUM(IF($A9=$A$17:$A$57,E$17:E$57)) -> 502 | F9: =SUM(IF($A9=$A$17:$A$57,F$17:F$57)) -> 437 | G9: =IF(OR(ISTEXT($E9),$E9=0),"N/A",F9/$E9) -> 0.8705179283 | I9: =SUM(IF($A9=$A$17:$A$57,I$17:I$57)) -> 432 | J9: =IF(OR(ISTEXT($E9),$E9=0),"N/A",I9/$E9) -> 0.8605577689 | L9: =SUM(IF($A9=$A$17:$A$57,L$17:L$57)) -> 471 | M9: =IF(OR(ISTEXT($E9),$E9=0),"N/A",L9/$E9) -> 0.938247012 | O9: =SUM(IF($A9=$A$17:$A$57,O$17:O$57)) -> 438 | P9: =IF(OR(ISTEXT($E9),$E9=0),"N/A",O9/$E9) -> 0.8725099602 | S9: =SUM(IF($A9=$A$17:$A$45,S$17:S$45)) ->  | T9: =IF(OR(ISTEXT($E9),$E9=0),"N/A",S9/$E9) -> 
A10: ='Control Panel'!A62 -> HV-2 | B10: Havering Marshall | D10: =SUM(IF($A10=$A$17:$A$57,D$17:D$57)) -> 47211 | E10: =SUM(IF($A10=$A$17:$A$57,E$17:E$57)) -> 514 | F10: =SUM(IF($A10=$A$17:$A$57,F$17:F$57)) -> 475 | G10: =IF(OR(ISTEXT($E10),$E10=0),"N/A",F10/$E10) -> 0.9241245136 | I10: =SUM(IF($A10=$A$17:$A$57,I$17:I$57)) -> 468 | J10: =IF(OR(ISTEXT($E10),$E10=0),"N/A",I10/$E10) -> 0.9105058366 | L10: =SUM(IF($A10=$A$17:$A$57,L$17:L$57)) -> 482 | M10: =IF(OR(ISTEXT($E10),$E10=0),"N/A",L10/$E10) -> 0.9377431907 | O10: =SUM(IF($A10=$A$17:$A$57,O$17:O$57)) -> 468 | P10: =IF(OR(ISTEXT($E10),$E10=0),"N/A",O10/$E10) -> 0.9105058366 | S10: =SUM(IF($A10=$A$17:$A$45,S$17:S$45)) ->  | T10: =IF(OR(ISTEXT($E10),$E10=0),"N/A",S10/$E10) -> 
A11: ='Control Panel'!A63 -> HV-3 | B11: Havering North | D11: =SUM(IF($A11=$A$17:$A$57,D$17:D$57)) -> 87712 | E11: =SUM(IF($A11=$A$17:$A$57,E$17:E$57)) -> 1067 | F11: =SUM(IF($A11=$A$17:$A$57,F$17:F$57)) -> 930 | G11: 0.8716026242 | I11: =SUM(IF($A11=$A$17:$A$57,I$17:I$57)) -> 932 | J11: 0.8734770384 | L11: =SUM(IF($A11=$A$17:$A$57,L$17:L$57)) -> 986 | M11: 0.9240862231 | O11: =SUM(IF($A11=$A$17:$A$57,O$17:O$57)) -> 940 | P11: 0.8809746954 | S11: =SUM(IF($A11=$A$17:$A$45,S$17:S$45)) -> 
A12: ='Control Panel'!A64 -> HV-4 | B12: Havering South | D12: =SUM(IF($A12=$A$17:$A$57,D$17:D$57)) -> 104914 | E12: =SUM(IF($A12=$A$17:$A$57,E$17:E$57)) -> 1065 | F12: =SUM(IF($A12=$A$17:$A$57,F$17:F$57)) -> 998 | G12: =IF(OR(ISTEXT($E12),$E12=0),"N/A",F12/$E12) -> 0.9370892019 | I12: =SUM(IF($A12=$A$17:$A$57,I$17:I$57)) -> 1001 | J12: =IF(OR(ISTEXT($E12),$E12=0),"N/A",I12/$E12) -> 0.9399061033 | L12: =SUM(IF($A12=$A$17:$A$57,L$17:L$57)) -> 1027 | M12: =IF(OR(ISTEXT($E12),$E12=0),"N/A",L12/$E12) -> 0.9643192488 | O12: =SUM(IF($A12=$A$17:$A$57,O$17:O$57)) -> 1005 | P12: =IF(OR(ISTEXT($E12),$E12=0),"N/A",O12/$E12) -> 0.9436619718
A13: Total | D13: =SUM(D9:D12) -> 282631 | E13: =SUM(E9:E12) -> 3148 | F13: =SUM(F9:F12) -> 2840 | G13: 0.9021601017 | I13: =SUM(I9:I12) -> 2833 | J13: 0.8999364676 | L13: =SUM(L9:L12) -> 2966 | M13: 0.9421855146 | O13: =SUM(O9:O12) -> 2851 | P13: 0.9056543837 | S13: =SUM(S9:S11) -> 
A14: Minimum and Maximum % | F14: Min | G14: Max | I14: Min | J14: Max | L14: Min | M14: Max | O14: Min | P14: Max | S14: Min | T14: Max
F15: =SMALL(G17:G45,COUNTIF(G17:G45,0)+1) -> 0.6984126984 | G15: =MAX(G17:G45) -> 0.9593908629 | I15: =SMALL(J17:J45,COUNTIF(J17:J45,0)+1) -> 0.7301587302 | J15: =MAX(J17:J45) -> 0.96875 | L15: =SMALL(M17:M45,COUNTIF(M17:M45,0)+1) -> 0.8139534884 | M15: =MAX(M17:M45) -> 1 | O15: =SMALL(P17:P45,COUNTIF(P17:P45,0)+1) -> 0.7627118644 | P15: =MAX(P17:P45) -> 0.976744186 | S15: =SMALL(T17:T45,COUNTIF(T17:T45,0)+1) ->  | T15: =MAX(T17:T45) -> 
A16: Practices
A17: ='Control Panel'!A65 -> HV-1 | B17: ='Control Panel'!B65 -> St Edwards Surgery | C17: ='Control Panel'!C65 -> F82011 | D17: =SUMIFS(OFFSET(REL_D,,MATCH($D$6,IND,0)-1),REL_D,$C$6,OrgID,$C17) -> 10299 | E17: =SUMIFS(OFFSET(REL_D,,MATCH($E$6,IND,0)-1),REL_D,$C$6,OrgID,$C17) -> 121 | F17: =SUMIFS(OFFSET(REL_D,,MATCH($F$6,IND,0)-1),REL_D,$C$6,OrgID,$C17) -> 111 | G17: =IF(OR(ISTEXT($E17),$E17=0),"N/A",F17/$E17) -> 0.9173553719 | H17: =IFERROR(ROUNDUP(IF($E17*0.95-F17>=0,$E17*0.95-F17,""),0),"") -> 4 | I17: =SUMIFS(OFFSET(REL_D,,MATCH($I$6,IND,0)-1),REL_D,$C$6,OrgID,$C17) -> 111 | J17: =IF(OR(ISTEXT($E17),$E17=0),"N/A",I17/$E17) -> 0.9173553719 | K17: =IFERROR(ROUNDUP(IF($E17*0.95-I17>=0,$E17*0.95-I17,""),0),"") -> 4 | L17: =SUMIFS(OFFSET(REL_D,,MATCH($L$6,IND,0)-1),REL_D,$C$6,OrgID,$C17) -> 117 | M17: =IF(OR(ISTEXT($E17),$E17=0),"N/A",L17/$E17) -> 0.9669421488 | N17: =IFERROR(ROUNDUP(IF($E17*0.95-L17>=0,$E17*0.95-L17,""),0),"") ->  | O17: =SUMIFS(OFFSET(REL_D,,MATCH($O$6,IND,0)-1),REL_D,$C$6,OrgID,$C17) -> 112 | P17: =IF(OR(ISTEXT($E17),$E17=0),"N/A",O17/$E17) -> 0.9256198347 | Q17: =IF($E17*0.9-O17>=1,$E17*0.9-O17,"") ->  | R17: =IF($E17*0.95-O17>=1,$E17*0.95-O17,"") -> 2.95 | S17: =HLOOKUP($C17,Data!$A$8:$BJ$27,MATCH(S$6,Data!$A$8:$A$27,0),FALSE) ->  | T17: =IF(OR(ISTEXT($E17),$E17=0),"N/A",S17/$E17) ->  | U17: =$E17*0.95 -> 114.95 | V17: =IF(U17-S17>=1,U17-S17,"") -> 
A18: ='Control Panel'!A66 -> HV-1 | B18: ='Control Panel'!B66 -> Brentwood Road Surgery (Dr Marks) | C18: ='Control Panel'!C66 -> F82663 | D18: 3940 | E18: 63 | F18: 44 | G18: =IF(OR(ISTEXT($E18),$E18=0),"N/A",F18/$E18) -> 0.6984126984 | H18: =IFERROR(ROUNDUP(IF($E18*0.95-F18>=0,$E18*0.95-F18,""),0),"") -> 16 | I18: 46 | J18: =IF(OR(ISTEXT($E18),$E18=0),"N/A",I18/$E18) -> 0.7301587302 | K18: =IFERROR(ROUNDUP(IF($E18*0.95-I18>=0,$E18*0.95-I18,""),0),"") -> 14 | L18: 58 | M18: =IF(OR(ISTEXT($E18),$E18=0),"N/A",L18/$E18) -> 0.9206349206 | N18: =IFERROR(ROUNDUP(IF($E18*0.95-L18>=0,$E18*0.95-L18,""),0),"") -> 2 | O18: 55 | P18: =IF(OR(ISTEXT($E18),$E18=0),"N/A",O18/$E18) -> 0.873015873 | Q18: =IF($E18*0.9-O18>=1,$E18*0.9-O18,"") -> 1.7 | R18: =IF($E18*0.95-O18>=1,$E18*0.95-O18,"") -> 4.85 | S18: =HLOOKUP($C18,Data!$A$8:$BJ$27,MATCH(S$6,Data!$A$8:$A$27,0),FALSE) ->  | T18: =IF(OR(ISTEXT($E18),$E18=0),"N/A",S18/$E18) ->  | U18: =$E18*0.95 -> 59.85 | V18: =IF(U18-S18>=1,U18-S18,"") -> 
A19: ='Control Panel'!A67 -> HV-1 | B19: ='Control Panel'!B67 -> Chadwell Heath Health Centre - The Upstairs Surgery (Dr Hamilton-Smith) | C19: ='Control Panel'!C67 -> F82019 | D19: 6475 | E19: 74 | F19: 66 | G19: 0.8918918919 | H19: 5 | I19: 64 | J19: =IF(OR(ISTEXT($E19),$E19=0),"N/A",I19/$E19) -> 0.8648648649 | K19: 7 | L19: 68 | M19: =IF(OR(ISTEXT($E19),$E19=0),"N/A",L19/$E19) -> 0.9189189189 | N19: 3 | O19: 60 | P19: =IF(OR(ISTEXT($E19),$E19=0),"N/A",O19/$E19) -> 0.8108108108 | Q19: =IF($E19*0.9-O19>=1,$E19*0.9-O19,"") -> 6.6 | R19: =IF($E19*0.95-O19>=1,$E19*0.95-O19,"") -> 10.3 | S19: =HLOOKUP($C19,Data!$A$8:$BJ$27,MATCH(S$6,Data!$A$8:$A$27,0),FALSE) ->  | U19: 70.3
A20: ='Control Panel'!A68 -> HV-1 | B20: ='Control Panel'!B68 -> The Modern Medical Centre | C20: ='Control Panel'!C68 -> F82638 | D20: 6715 | E20: 98 | F20: 84 | G20: 0.8571428571 | H20: 10 | I20: 80 | J20: 0.8163265306 | K20: 14 | L20: 91 | M20: 0.9285714286 | N20: 3 | O20: 81 | P20: 0.8265306122 | Q20: 7.2 | R20: 12.1 | S20: =HLOOKUP($C20,Data!$A$8:$BJ$27,MATCH(S$6,Data!$A$8:$A$27,0),FALSE) ->  | U20: 93.1
A21: ='Control Panel'!A69 -> HV-1 | B21: ='Control Panel'!B69 -> Rush Green Medical Centre (Dr Poologanathan & Partners) | C21: ='Control Panel'!C69 -> F82039 | D21: 3908 | E21: 47 | F21: 42 | G21: =IF(OR(ISTEXT($E21),$E21=0),"N/A",F21/$E21) -> 0.8936170213 | H21: 3 | I21: 42 | J21: =IF(OR(ISTEXT($E21),$E21=0),"N/A",I21/$E21) -> 0.8936170213 | K21: 3 | L21: 45 | M21: =IF(OR(ISTEXT($E21),$E21=0),"N/A",L21/$E21) -> 0.9574468085 | O21: 43 | P21: =IF(OR(ISTEXT($E21),$E21=0),"N/A",O21/$E21) -> 0.914893617 | R21: 1.65 | S21: =HLOOKUP($C21,Data!$A$8:$BJ$27,MATCH(S$6,Data!$A$8:$A$27,0),FALSE) ->  | T21: =IF(OR(ISTEXT($E21),$E21=0),"N/A",S21/$E21) ->  | U21: =$E21*0.95 -> 44.65 | V21: =IF(U21-S21>=1,U21-S21,"") -> 
A22: ='Control Panel'!A70 -> HV-1 | B22: ='Control Panel'!B70 -> Rush Green Medical Centre (Dr Sanomi) | C22: ='Control Panel'!C70 -> F82031 | D22: 4478 | E22: 45 | F22: 41 | G22: =IF(OR(ISTEXT($E22),$E22=0),"N/A",F22/$E22) -> 0.9111111111 | H22: 2 | I22: 40 | J22: =IF(OR(ISTEXT($E22),$E22=0),"N/A",I22/$E22) -> 0.8888888889 | K22: 3 | L22: 41 | M22: =IF(OR(ISTEXT($E22),$E22=0),"N/A",L22/$E22) -> 0.9111111111 | N22: 2 | O22: 41 | P22: =IF(OR(ISTEXT($E22),$E22=0),"N/A",O22/$E22) -> 0.9111111111 | R22: 1.75 | S22: =HLOOKUP($C22,Data!$A$8:$BJ$27,MATCH(S$6,Data!$A$8:$A$27,0),FALSE) ->  | U22: 42.75
A23: ='Control Panel'!A71 -> HV-1 | B23: ='Control Panel'!B71 -> High Street Surgery (Dr Pervez) | C23: ='Control Panel'!C71 -> F82023 | D23: 3432 | E23: 27 | F23: 24 | G23: 0.8888888889 | H23: 2 | I23: 24 | J23: 0.8888888889 | K23: 2 | L23: 25 | M23: 0.9259259259 | N23: 1 | O23: 23 | P23: 0.8518518519 | Q23: 1.3 | R23: 2.65 | S23: =HLOOKUP($C23,Data!$A$8:$BJ$27,MATCH(S$6,Data!$A$8:$A$27,0),FALSE) ->  | U23: 25.65
A24: ='Control Panel'!A72 -> HV-1 | B24: ='Control Panel'!B72 -> Billet Lane Medical Centre | C24: ='Control Panel'!C72 -> F82675 | D24: 3547 | E24: 27 | F24: 25 | G24: 0.9259259259 | H24: 1 | I24: 25 | J24: 0.9259259259 | K24: 1 | L24: 26 | M24: 0.962962963 | O24: 23 | P24: 0.8518518519 | Q24: 1.3 | R24: 2.65 | S24: =HLOOKUP($C24,Data!$A$8:$BJ$27,MATCH(S$6,Data!$A$8:$A$27,0),FALSE) ->  | U24: 25.65
A25: ='Control Panel'!A73 -> HV-2 | B25: ='Control Panel'!B73 -> Western Road Medical Centre | C25: ='Control Panel'!C73 -> F82013 | D25: 17160 | E25: 197 | F25: 189 | G25: 0.9593908629 | I25: 187 | J25: 0.9492385787 | K25: 1 | L25: 191 | M25: 0.9695431472 | O25: 186 | P25: 0.9441624365 | R25: 1.15 | S25: =HLOOKUP($C25,Data!$A$8:$BJ$27,MATCH(S$6,Data!$A$8:$A$27,0),FALSE) ->  | U25: 187.15
A26: ='Control Panel'!A74 -> HV-2 | B26: ='Control Panel'!B74 -> The New Medical Centre | C26: ='Control Panel'!C74 -> F82021 | D26: 9912 | E26: 99 | F26: 90 | G26: 0.9090909091 | H26: 5 | I26: 89 | J26: 0.898989899 | K26: 6 | L26: 91 | M26: 0.9191919192 | N26: 4 | O26: 88 | P26: 0.8888888889 | Q26: 1.1 | R26: 6.05 | S26: =HLOOKUP($C26,Data!$A$8:$BJ$27,MATCH(S$6,Data!$A$8:$A$27,0),FALSE) ->  | U26: 94.05
A27: ='Control Panel'!A75 -> HV-2 | B27: ='Control Panel'!B75 -> North Street Medical Care | C27: ='Control Panel'!C75 -> F82009 | D27: 20139 | E27: 218 | F27: 196 | G27: 0.8990825688 | H27: 12 | I27: 192 | J27: 0.880733945 | K27: 16 | L27: 200 | M27: 0.9174311927 | N27: 8 | O27: 194 | P27: 0.8899082569 | Q27: 2.2 | R27: 13.1 | S27: =HLOOKUP($C27,Data!$A$8:$BJ$27,MATCH(S$6,Data!$A$8:$A$27,0),FALSE) ->  | U27: 207.1
A28: ='Control Panel'!A76 -> HV-3 | B28: ='Control Panel'!B76 -> Chadwell Heath Health Centre (Dr A Patel) | C28: ='Control Panel'!C76 -> F82686 | D28: 3541 | E28: 43 | F28: 33 | G28: 0.7674418605 | H28: 8 | I28: 32 | J28: 0.7441860465 | K28: 9 | L28: 35 | M28: 0.8139534884 | N28: 6 | O28: 33 | P28: 0.7674418605 | Q28: 5.7 | R28: 7.85 | S28: =HLOOKUP($C28,Data!$A$8:$BJ$27,MATCH(S$6,Data!$A$8:$A$27,0),FALSE) ->  | U28: 40.85
A29: ='Control Panel'!A77 -> HV-3 | B29: ='Control Panel'!B77 -> Petersfield Surgery | C29: ='Control Panel'!C77 -> F82010 | D29: 8023 | E29: 105 | F29: 92 | G29: 0.8761904762 | H29: 8 | I29: 93 | J29: 0.8857142857 | K29: 7 | L29: 97 | M29: 0.9238095238 | N29: 3 | O29: 97 | P29: 0.9238095238 | R29: 2.75 | S29: =HLOOKUP($C29,Data!$A$8:$BJ$27,MATCH(S$6,Data!$A$8:$A$27,0),FALSE) ->  | U29: 99.75
A30: ='Control Panel'!A78 -> HV-3 | B30: ='Control Panel'!B78 -> Ingrebourne Medical Centre | C30: ='Control Panel'!C78 -> F82648 | D30: 3520 | E30: 51 | F30: 48 | G30: 0.9411764706 | H30: 1 | I30: 48 | J30: 0.9411764706 | K30: 1 | L30: 48 | M30: 0.9411764706 | N30: 1 | O30: 46 | P30: 0.9019607843 | R30: 2.45 | S30: =HLOOKUP($C30,Data!$A$8:$BJ$27,MATCH(S$6,Data!$A$8:$A$27,0),FALSE) ->  | U30: 48.45
A31: ='Control Panel'!A79 -> HV-3 | B31: ='Control Panel'!B79 -> Straight Road Doctors Surgery (Dr Prasad) | C31: ='Control Panel'!C79 -> F82671 | D31: 3241 | E31: 48 | F31: 43 | G31: 0.8958333333 | H31: 3 | I31: 43 | J31: 0.8958333333 | K31: 3 | L31: 45 | M31: 0.9375 | N31: 1 | O31: 38 | P31: 0.7916666667 | Q31: 5.2 | R31: 7.6 | S31: =HLOOKUP($C31,Data!$A$8:$BJ$27,MATCH(S$6,Data!$A$8:$A$27,0),FALSE) ->  | U31: 45.6
A32: ='Control Panel'!A80 -> HV-3 | B32: ='Control Panel'!B80 -> AbbaMoor surgery | C32: ='Control Panel'!C80 -> F82670 | D32: 3265 | E32: 59 | F32: 43 | G32: 0.7288135593 | H32: 14 | I32: 44 | J32: 0.7457627119 | K32: 13 | L32: 49 | M32: 0.8305084746 | N32: 8 | O32: 45 | P32: 0.7627118644 | Q32: 8.1 | R32: 11.05 | S32: =HLOOKUP($C32,Data!$A$8:$BJ$27,MATCH(S$6,Data!$A$8:$A$27,0),FALSE) ->  | U32: 56.05
A33: ='Control Panel'!A81 -> HV-3 | B33: ='Control Panel'!B81 -> Harold Hill Health Centre (Dr Kuchhai) | C33: ='Control Panel'!C81 -> F82014 | D33: 7190 | E33: 82 | F33: 66 | G33: 0.8048780488 | H33: 12 | I33: 66 | J33: 0.8048780488 | K33: 12 | L33: 71 | M33: 0.8658536585 | N33: 7 | O33: 68 | P33: 0.8292682927 | Q33: 5.8 | R33: 9.9 | S33: =HLOOKUP($C33,Data!$A$8:$BJ$27,MATCH(S$6,Data!$A$8:$A$27,0),FALSE) ->  | U33: 77.9
A34: ='Control Panel'!A82 -> HV-3 | B34: ='Control Panel'!B82 -> Central Park Surgery (Dr Kakad) | C34: ='Control Panel'!C82 -> F82016 | D34: 7029 | E34: 72 | F34: 65 | G34: 0.9027777778 | H34: 4 | I34: 66 | J34: 0.9166666667 | K34: 3 | L34: 65 | M34: 0.9027777778 | N34: 4 | O34: 66 | P34: 0.9166666667 | R34: 2.4 | S34: =HLOOKUP($C34,Data!$A$8:$BJ$27,MATCH(S$6,Data!$A$8:$A$27,0),FALSE) ->  | U34: 68.4
A35: ='Control Panel'!A83 -> HV-3 | B35: ='Control Panel'!B83 -> The Robins Surgery | C35: ='Control Panel'!C83 -> Y00312 | D35: 4893 | E35: 54 | F35: 44 | G35: 0.8148148148 | H35: 8 | I35: 44 | J35: 0.8148148148 | K35: 8 | L35: 52 | M35: 0.962962963 | O35: 47 | P35: 0.8703703704 | Q35: 1.6 | R35: 4.3 | S35: =HLOOKUP($C35,Data!$A$8:$BJ$27,MATCH(S$6,Data!$A$8:$A$27,0),FALSE) ->  | U35: 51.3
A36: ='Control Panel'!A84 -> HV-3 | B36: ='Control Panel'!B84 -> The Greenwood Practice | C36: ='Control Panel'!C84 -> F82007 | D36: 11269 | E36: 97 | F36: 89 | G36: 0.9175257732 | H36: 4 | I36: 89 | J36: 0.9175257732 | K36: 4 | L36: 93 | M36: 0.9587628866 | O36: 90 | P36: 0.9278350515 | R36: 2.15 | S36: =HLOOKUP($C36,Data!$A$8:$BJ$27,MATCH(S$6,Data!$A$8:$A$27,0),FALSE) ->  | U36: 92.15
A37: ='Control Panel'!A85 -> HV-3 | B37: ='Control Panel'!B85 -> Oak Lodge Surgery (Dr Chowdhury) | C37: ='Control Panel'!C85 -> F82045 | D37: 3539 | E37: 35 | F37: 31 | G37: 0.8857142857 | H37: 3 | I37: 31 | J37: 0.8857142857 | K37: 3 | L37: 31 | M37: 0.8857142857 | N37: 3 | O37: 32 | P37: 0.9142857143 | R37: 1.25 | S37: =HLOOKUP($C37,Data!$A$8:$BJ$27,MATCH(S$6,Data!$A$8:$A$27,0),FALSE) ->  | U37: 33.25
A38: ='Control Panel'!A86 -> HV-3 | B38: ='Control Panel'!B86 -> Kings Park Surgery | C38: ='Control Panel'!C86 -> Y02973 | D38: =SUMIFS(OFFSET(REL_D,,MATCH($D$6,IND,0)-1),REL_D,$C$6,OrgID,$C38) -> 8566 | E38: =SUMIFS(OFFSET(REL_D,,MATCH($E$6,IND,0)-1),REL_D,$C$6,OrgID,$C38) -> 172 | F38: =SUMIFS(OFFSET(REL_D,,MATCH($F$6,IND,0)-1),REL_D,$C$6,OrgID,$C38) -> 149 | G38: 0.8662790698 | H38: 15 | I38: 148 | J38: 0.8604651163 | K38: 16 | L38: 162 | M38: 0.9418604651 | N38: 2 | O38: 155 | P38: 0.9011627907 | R38: 8.4 | S38: =HLOOKUP($C38,Data!$A$8:$BJ$27,MATCH(S$6,Data!$A$8:$A$27,0),FALSE) ->  | U38: 163.4
A39: ='Control Panel'!A87 -> HV-3 | B39: ='Control Panel'!B87 -> Lynwood Medical Centre | C39: ='Control Panel'!C87 -> F82030 | D39: 13837 | E39: 139 | F39: 130 | G39: 0.9352517986 | H39: 3 | I39: 129 | J39: 0.928057554 | K39: 4 | L39: 135 | M39: 0.9712230216 | O39: 126 | P39: 0.9064748201 | R39: 6.05 | S39: =HLOOKUP($C39,Data!$A$8:$BJ$27,MATCH(S$6,Data!$A$8:$A$27,0),FALSE) ->  | U39: 132.05
A40: ='Control Panel'!A88 -> HV-3 | B40: ='Control Panel'!B88 -> Chase Cross Medical Centre (Dr Kulendran) | C40: ='Control Panel'!C88 -> F82630 | D40: 6898 | E40: 82 | F40: 73 | G40: 0.8902439024 | H40: 5 | I40: 75 | J40: 0.9146341463 | K40: 3 | L40: 75 | M40: 0.9146341463 | N40: 3 | O40: 70 | P40: 0.8536585366 | Q40: 3.8 | R40: 7.9 | S40: =HLOOKUP($C40,Data!$A$8:$BJ$27,MATCH(S$6,Data!$A$8:$A$27,0),FALSE) ->  | U40: 77.9
A41: ='Control Panel'!A89 -> HV-3 | B41: ='Control Panel'!B89 -> Dr N K Gupta Surgery | C41: ='Control Panel'!C89 -> F82610 | D41: 2901 | E41: 28 | F41: 24 | G41: =IF(OR(ISTEXT($E41),$E41=0),"N/A",F41/$E41) -> 0.8571428571 | H41: 3 | I41: 24 | J41: =IF(OR(ISTEXT($E41),$E41=0),"N/A",I41/$E41) -> 0.8571428571 | K41: 3 | L41: 28 | M41: =IF(OR(ISTEXT($E41),$E41=0),"N/A",L41/$E41) -> 1 | O41: 27 | P41: =IF(OR(ISTEXT($E41),$E41=0),"N/A",O41/$E41) -> 0.9642857143
A42: ='Control Panel'!A90 -> HV-4 | B42: ='Control Panel'!B90&" - No Data Available" -> Dr V M Patel Surgery - No Data Available | C42: ='Control Panel'!C90 -> F82033 | D42: - | E42: - | F42: - | G42: - | I42: - | J42: - | L42: - | M42: - | O42: - | P42: -
A43: ='Control Panel'!A91 -> HV-4 | B43: ='Control Panel'!B91 -> Hornchurch Healthcare | C43: ='Control Panel'!C91 -> F82055 | D43: 9247 | E43: 157 | F43: 149 | G43: =IF(OR(ISTEXT($E43),$E43=0),"N/A",F43/$E43) -> 0.949044586 | H43: 1 | I43: =SUMIFS(OFFSET(REL_D,,MATCH($I$6,IND,0)-1),REL_D,$C$6,OrgID,$C43) -> 150 | J43: =IF(OR(ISTEXT($E43),$E43=0),"N/A",I43/$E43) -> 0.9554140127 | L43: =SUMIFS(OFFSET(REL_D,,MATCH($L$6,IND,0)-1),REL_D,$C$6,OrgID,$C43) -> 154 | M43: =IF(OR(ISTEXT($E43),$E43=0),"N/A",L43/$E43) -> 0.9808917197 | O43: =SUMIFS(OFFSET(REL_D,,MATCH($O$6,IND,0)-1),REL_D,$C$6,OrgID,$C43) -> 153 | P43: =IF(OR(ISTEXT($E43),$E43=0),"N/A",O43/$E43) -> 0.974522293 | S43: =HLOOKUP($C43,Data!$A$8:$BJ$27,MATCH(S$6,Data!$A$8:$A$27,0),FALSE) ->  | T43: =IF(OR(ISTEXT($E43),$E43=0),"N/A",S43/$E43) ->  | U43: 149.15 | V43: =IF(U43-S43>=1,U43-S43,"") -> 
A44: ='Control Panel'!A92 -> HV-4 | B44: ='Control Panel'!B92 -> Sutton Ave surgery (P M Patel) | C44: ='Control Panel'!C92 -> F82609 | D44: 4540 | E44: 43 | F44: 40 | G44: 0.9302325581 | H44: 1 | I44: 41 | J44: 0.9534883721 | L44: 42 | M44: 0.976744186 | O44: 42 | P44: 0.976744186 | S44: =HLOOKUP($C44,Data!$A$8:$BJ$27,MATCH(S$6,Data!$A$8:$A$27,0),FALSE) ->  | U44: 40.85
A45: ='Control Panel'!A93 -> HV-4 | B45: ='Control Panel'!B93 -> Haiderian Medical Centre | C45: ='Control Panel'!C93 -> F82002 | D45: 6560 | E45: 64 | F45: 60 | G45: 0.9375 | H45: 1 | I45: 62 | J45: 0.96875 | L45: 62 | M45: 0.96875 | O45: 60 | P45: 0.9375 | S45: =HLOOKUP($C45,Data!$A$8:$BJ$27,MATCH(S$6,Data!$A$8:$A$27,0),FALSE) ->  | U45: 60.8
A46: ='Control Panel'!A94 -> HV-4 | B46: ='Control Panel'!B94 -> Maylands Health Care | C46: ='Control Panel'!C94 -> F82008 | D46: 14059 | E46: 108 | F46: 105 | G46: =IF(OR(ISTEXT($E46),$E46=0),"N/A",F46/$E46) -> 0.9722222222 | I46: 103 | J46: =IF(OR(ISTEXT($E46),$E46=0),"N/A",I46/$E46) -> 0.9537037037 | L46: 106 | M46: =IF(OR(ISTEXT($E46),$E46=0),"N/A",L46/$E46) -> 0.9814814815 | O46: 103 | P46: =IF(OR(ISTEXT($E46),$E46=0),"N/A",O46/$E46) -> 0.9537037037
A47: ='Control Panel'!A95 -> HV-4 | B47: ='Control Panel'!B95 -> Wood Lane Medical Centre | C47: ='Control Panel'!C95 -> F82028 | D47: 9637 | E47: 113 | F47: 104 | G47: 0.9203539823 | H47: 4 | I47: 104 | J47: 0.9203539823 | K47: 4 | L47: 106 | M47: 0.9380530973 | N47: 2 | O47: 104 | P47: 0.9203539823
A48: ='Control Panel'!A96 -> HV-4 | B48: ='Control Panel'!B96 -> The Surgery (Dr Rahman) | C48: ='Control Panel'!C96 -> F82666 | D48: 5038 | E48: 61 | F48: 58 | G48: 0.9508196721 | I48: 58 | J48: 0.9508196721 | L48: 59 | M48: 0.9672131148 | O48: 57 | P48: 0.9344262295
A49: ='Control Panel'!A97 -> HV-4 | B49: ='Control Panel'!B97 -> The Rosewood Medical Centre | C49: ='Control Panel'!C97 -> F82022 | D49: 12460 | E49: 111 | F49: 108 | G49: 0.972972973 | I49: 109 | J49: 0.981981982 | L49: 111 | M49: 1 | O49: 109 | P49: 0.981981982
A50: ='Control Panel'!A98 -> HV-4 | B50: ='Control Panel'!B98 -> Harlow Road Surgery (Dr Subramanian) | C50: ='Control Panel'!C98 -> F82619 | D50: 3295 | E50: 42 | F50: 40 | G50: 0.9523809524 | I50: 40 | J50: 0.9523809524 | L50: 40 | M50: 0.9523809524 | O50: 39 | P50: 0.9285714286
A51: ='Control Panel'!A99 -> HV-4 | B51: ='Control Panel'!B99 -> Rainham Health Centre (Dr Abdullah) | C51: ='Control Panel'!C99 -> F82627 | D51: 5560 | E51: 63 | F51: 53 | G51: 0.8412698413 | H51: 7 | I51: 54 | J51: 0.8571428571 | K51: 6 | L51: 59 | M51: 0.9365079365 | N51: 1 | O51: 58 | P51: 0.9206349206
A52: ='Control Panel'!A100 -> HV-4 | B52: ='Control Panel'!B100 -> Berwick Surgery | C52: ='Control Panel'!C100 -> F82649 | D52: 4549 | E52: 35 | F52: 32 | G52: 0.9142857143 | H52: 2 | I52: 33 | J52: 0.9428571429 | K52: 1 | L52: 33 | M52: 0.9428571429 | N52: 1 | O52: 32 | P52: 0.9142857143
A53: ='Control Panel'!A101 -> HV-4 | B53: ='Control Panel'!B101 -> South Hornchurch Medical Practice | C53: ='Control Panel'!C101 -> F82607 | D53: 5062 | E53: 59 | F53: 51 | G53: 0.8644067797 | H53: 6 | I53: 51 | J53: 0.8644067797 | K53: 6 | L53: 53 | M53: 0.8983050847 | N53: 4 | O53: 52 | P53: 0.8813559322
A54: ='Control Panel'!A102 -> HV-4 | B54: ='Control Panel'!B102 -> Avon Road Surgery (Cranham Health Centre) | C54: ='Control Panel'!C102 -> F82674 | D54: 5258 | E54: 55 | F54: 51 | G54: =IF(OR(ISTEXT($E54),$E54=0),"N/A",F54/$E54) -> 0.9272727273 | H54: 2 | I54: 51 | J54: =IF(OR(ISTEXT($E54),$E54=0),"N/A",I54/$E54) -> 0.9272727273 | K54: 2 | L54: 54 | M54: =IF(OR(ISTEXT($E54),$E54=0),"N/A",L54/$E54) -> 0.9818181818 | O54: 53 | P54: =IF(OR(ISTEXT($E54),$E54=0),"N/A",O54/$E54) -> 0.9636363636
A55: ='Control Panel'!A103 -> HV-4 | B55: ='Control Panel'!B103 -> Cranham Village Surgery (Dr C Dahs & Dr IP Humberstone Surgery) | C55: ='Control Panel'!C103 -> F82006 | D55: 12364 | E55: 99 | F55: 95 | G55: 0.9595959596 | I55: 94 | J55: 0.9494949495 | K55: 1 | L55: 97 | M55: 0.9797979798 | O55: 94 | P55: 0.9494949495
A56: ='Control Panel'!A104 -> HV-4 | B56: ='Control Panel'!B104 -> Upminster Medical Centre | C56: ='Control Panel'!C104 -> F82053 | D56: 3394 | E56: 23 | F56: 22 | G56: 0.9565217391 | I56: 21 | J56: 0.9130434783 | K56: 1 | L56: 20 | M56: 0.8695652174 | N56: 2 | O56: 20 | P56: 0.8695652174
A57: ='Control Panel'!A105 -> HV-4 | B57: ='Control Panel'!B105 -> The Upminster Bridge Surgery (Dr O'Moore) | C57: ='Control Panel'!C105 -> F82624 | D57: 3891 | E57: 32 | F57: 30 | G57: 0.9375 | H57: 1 | I57: 30 | J57: 0.9375 | K57: 1 | L57: 31 | M57: 0.96875 | O57: 29 | P57: 0.90625
A58: ='Control Panel'!A107 -> 0
A59: ='Control Panel'!A108 -> 0
A60: ='Control Panel'!A109 -> 0
A61: ='Control Panel'!A110 -> 0
A62: ='Control Panel'!A111 -> 0
A63: ='Control Panel'!A112 -> 0
A64: ='Control Panel'!A113 -> 0
A65: ='Control Panel'!A114 -> 0
A66: ='Control Panel'!A115 -> 0
A67: ='Control Panel'!A116 -> 0
A68: ='Control Panel'!A117 -> 0
A69: ='Control Panel'!A118 -> 0
A70: ='Control Panel'!A119 -> 0
A71: ='Control Panel'!A120 -> 0
A72: ='Control Panel'!A121 -> 0
A73: ='Control Panel'!A122 -> 0
A74: ='Control Panel'!A123 -> 0
A75: ='Control Panel'!A124 -> 0
A76: ='Control Panel'!A125 -> 0
A77: ='Control Panel'!A126 -> 0
A78: ='Control Panel'!A127 -> 0
A79: ='Control Panel'!A128 -> 0
A80: ='Control Panel'!A129 -> 0
A81: ='Control Panel'!A130 -> 0
A82: ='Control Panel'!A131 -> 0
A83: ='Control Panel'!A132 -> 0
A84: ='Control Panel'!A133 -> 0
A85: ='Control Panel'!A134 -> 0
A86: ='Control Panel'!A135 -> 0
A87: ='Control Panel'!A136 -> 0
A88: ='Control Panel'!A137 -> 0

Sheet Patients becoming 24m
D2: Havering Childhood Immunisations Dashboard: Metric Details
D3: Patients becoming 24m | F3: =E13 -> 3304
